bitfinex/quotes_SOLUSD_20230105
["timestamp","ask_amount","ask_price","bid_price","bid_amount"]
[1672932735883,12.71,13.36,13.351,37.0]
[1672932736086,12.71,13.36,13.352,56.21]
[1672932736507,12.71,13.36,13.353,20.0]
[1672932737466,12.72,13.36,13.35,20.0]
[1672932737685,12.72,13.36,13.351,56.22]
[1672932737875,12.72,13.36,13.352,20.0]
[1672932738088,12.72,13.36,13.35,20.0]
[1672932738292,20.0,13.359,13.351,0.83819906]
[1672932738508,17.0,13.358,13.345,56.24]
[1672932738723,17.0,13.358,13.348,0.83819906]
[1672932738927,17.0,13.358,13.346,0.83819906]
[1672932739554,17.0,13.358,13.346,0.63860235]
[1672932740632,17.0,13.358,13.346,0.43900564]
[1672932741465,17.0,13.358,13.345,56.67900564]
[1672932741673,17.0,13.358,13.345,56.47940893]
[1672932741882,20.0,13.357,13.345,0.23940893]
[1672932742191,166.27701953,13.356,13.345,0.23940893]
[1672932742620,20.0,13.355,13.344,113.5248]
[1672932743472,20.0,13.355,13.336,56.28]
[1672932743783,20.0,13.355,13.343,20.0]
[1672932743998,74.95411953,13.355,13.343,20.0]
[1672932744303,56.39312653,13.354,13.343,20.0]
[1672932744530,54.95411953,13.355,13.343,20.0]
[1672932744721,111.3229,13.356,13.343,20.0]
[1672932744928,111.3229,13.356,13.343,76.25]
[1672932746080,111.3229,13.356,13.344,17.0]
[1672932746707,20.0,13.355,13.344,17.0]
[1672932747365,111.3229,13.356,13.344,17.0]
[1672932748408,111.3229,13.356,13.345,56.24]
[1672932748599,111.3229,13.356,13.346,17.0]
[1672932749133,77.0069,13.356,13.344,56.25]
[1672932750197,20.0,13.355,13.343,20.0]
[1672932750509,37.0,13.355,13.338,20.0]
[1672932750715,93.2,13.355,13.339,40.7]
[1672932750908,37.0,13.355,13.339,40.7]
[1672932753771,59.41737149,13.355,13.339,40.7]
[1672932754281,59.41737149,13.355,13.34,20.0]
[1672932754482,59.41737149,13.355,13.341,20.0]
[1672932754483,20.0,13.355,13.341,20.0]
[1672932754699,77.0069,13.356,13.341,76.26]
[1672932754926,77.0069,13.356,13.342,20.0]
[1672932755133,77.0069,13.356,13.343,76.25]
[1672932756819,77.0069,13.356,13.344,20.0]
[1672932757134,77.0069,13.356,13.346,20.0]
[1672932757333,77.0069,13.356,13.345,56.24]
[1672932757551,77.0069,13.356,13.344,56.25]
[1672932759019,20.0,13.355,13.344,56.25]
[1672932759422,20.0,13.355,13.343,20.0]
[1672932759423,20.0,13.355,13.343,76.25]
[1672932759642,17.0,13.354,13.343,20.0]
[1672932759965,20.0,13.353,13.339,20.0]
[1672932760165,20.0,13.353,13.34,56.27]
[1672932760377,20.0,13.353,13.341,20.0]
[1672932761013,20.0,13.353,13.339,20.0]
[1672932761226,20.0,13.353,13.34,56.27]
[1672932761439,12.73,13.35,13.341,20.0]
[1672932761658,17.0,13.349,13.341,20.0]
[1672932761966,12.73,13.35,13.339,20.0]
[1672932764476,12.73,13.35,13.338,56.27]
[1672932764690,12.73,13.35,13.337,20.0]
[1672932764902,12.73,13.35,13.338,56.27]
[1672932765414,192.6052,13.356,13.339,40.0]
[1672932765630,192.6052,13.356,13.341,20.0]
[1672932765851,192.6052,13.356,13.342,56.26]
[1672932766068,192.6052,13.356,13.343,20.0]
[1672932766673,20.0,13.355,13.343,20.0]
[1672932769018,17.0,13.354,13.343,20.0]
[1672932771217,192.6052,13.356,13.344,17.0]
[1672932771615,68.88,13.36,13.345,20.0]
[1672932771833,12.7,13.36,13.346,17.0]
[1672932772574,20.0,13.359,13.345,17.0]
[1672932772996,17.0,13.358,13.345,17.0]
[1672932774166,17.0,13.358,13.344,56.25]
[1672932777200,17.0,13.358,13.345,20.0]
[1672932778140,17.0,13.358,13.344,20.0]
[1672932778674,39.41737149,13.358,13.344,20.0]
[1672932778886,20.0,13.357,13.344,20.0]
[1672932779091,17.0,13.356,13.344,20.0]
[1672932779301,20.0,13.355,13.344,20.0]
[1672932779632,17.0,13.354,13.344,20.0]
[1672932779823,20.0,13.353,13.344,20.0]
[1672932784455,17.0,13.352,13.343,20.0]
[1672932786033,17.0,13.352,13.339,20.0]
[1672932786246,17.0,13.352,13.34,56.27]
[1672932786452,17.0,13.352,13.338,56.27]
[1672932786651,17.0,13.352,13.337,56.28]
[1672932786860,115.9484,13.351,13.337,56.28]
[1672932787068,29.73,13.35,13.336,56.28]
[1672932787390,20.0,13.349,13.336,56.28]
[1672932787598,17.0,13.348,13.336,56.28]
[1672932788134,20.0,13.347,13.336,56.28]
[1672932789713,110.9686,13.349,13.336,56.28]
[1672932790029,20.0,13.348,13.336,56.28]
[1672932792535,20.0,13.346,13.336,56.28]
[1672932792949,17.0,13.345,13.334,56.29]
[1672932793282,20.0,13.346,13.334,56.29]
[1672932793509,20.0,13.346,13.336,56.28]
[1672932799277,17.0,13.345,13.334,56.29]
[1672932800009,20.0,13.346,13.334,56.29]
[1672932802201,17.0,13.345,13.335,20.0]
[1672932802408,20.0,13.344,13.335,20.0]
[1672932802729,17.0,13.343,13.335,20.0]
[1672932802942,17.0,13.343,13.334,20.0]
[1672932803671,17.0,13.343,13.33,20.0]
[1672932804002,17.0,13.343,13.331,56.3]
[1672932804317,17.0,13.343,13.332,20.0]
[1672932804634,20.0,13.342,13.332,20.0]
[1672932804841,17.0,13.341,13.332,20.0]
[1672932805052,17.0,13.341,13.331,20.0]
[1672932805367,17.0,13.341,13.332,56.3]
[1672932805581,17.0,13.341,13.333,20.0]
[1672932805902,20.0,13.34,13.333,20.0]
[1672932806097,20.0,13.34,13.331,20.0]
[1672932807033,17.0,13.339,13.331,20.0]
[1672932809765,17.0,13.339,13.321,100.4948]
[1672932809766,56.27,13.338,13.321,100.4948]
[1672932809975,12.73,13.33,13.321,100.4948]
[1672932811128,12.73,13.33,13.322,20.0]
[1672932812396,17.0,13.329,13.322,20.0]
[1672932812606,12.73,13.33,13.321,20.0]
[1672932812936,17.0,13.329,13.321,20.0]
[1672932813147,17.0,13.329,13.317,40.78]
[1672932813349,17.0,13.329,13.318,5.45553096]
[1672932813543,17.0,13.329,13.319,76.35]
[1672932814069,17.0,13.329,13.319,20.0]
[1672932814279,17.0,13.329,13.317,76.36]
[1672932814490,17.0,13.329,13.318,5.45553096]
[1672932814721,17.0,13.329,13.319,76.35]
[1672932815151,17.0,13.329,13.319,20.0]
[1672932815343,17.0,13.329,13.317,56.36]
[1672932815560,17.0,13.329,13.318,5.45553096]
[1672932815773,20.0,13.327,13.315,61.82512133]
[1672932816944,110.4605,13.328,13.315,61.82512133]
[1672932817147,20.0,13.326,13.315,61.82512133]
[1672932817362,110.4605,13.328,13.315,61.82512133]
[1672932817676,17.0,13.327,13.315,61.82512133]
[1672932817889,110.4605,13.328,13.315,61.82512133]
[1672932818093,71.05,13.34,13.316,20.0]
[1672932818094,178.34475286,13.335,13.316,20.0]
[1672932818298,112.1153,13.335,13.317,61.81594066]
[1672932818625,112.1153,13.335,13.319,20.0]
[1672932818826,112.1153,13.335,13.32,56.35]
[1672932819033,112.1153,13.335,13.321,20.0]
[1672932819355,112.1153,13.335,13.322,56.34]
[1672932819548,12.86,13.34,13.323,20.0]
[1672932819764,121.6262,13.34,13.325,20.0]
[1672932819980,121.6262,13.34,13.326,56.32]
[1672932820522,20.0,13.339,13.324,56.33]
[1672932820731,42.41737149,13.339,13.325,20.0]
[1672932821359,17.0,13.338,13.324,76.33]
[1672932822846,39.41737149,13.338,13.324,20.0]
[1672932823037,20.0,13.337,13.323,20.0]
[1672932823247,17.0,13.336,13.324,56.33]
[1672932823464,17.0,13.336,13.325,20.0]
[1672932824094,17.0,13.336,13.323,20.0]
[1672932824301,117.9973,13.335,13.324,56.33]
[1672932824500,37.0,13.334,13.325,20.0]
[1672932824932,59.41737149,13.334,13.325,20.0]
[1672932825148,22.41737149,13.333,13.323,20.0]
[1672932825343,17.0,13.332,13.322,20.0]
[1672932826202,37.0,13.332,13.322,20.0]
[1672932829244,59.41737149,13.332,13.322,20.0]
[1672932829460,12.73,13.33,13.322,20.0]
[1672932829666,12.73,13.33,13.321,113.1366]
[1672932829667,20.0,13.328,13.315,56.37]
[1672932829874,20.0,13.328,13.316,5.45635042]
[1672932830089,20.0,13.328,13.317,56.36]
[1672932830287,20.0,13.328,13.318,5.45553096]
[1672932830501,20.0,13.328,13.318,5.45512133]
[1672932830937,139.026,13.328,13.317,5.45512133]
[1672932831456,17.0,13.327,13.317,5.45512133]
[1672932833443,17.0,13.327,13.316,5.45553096]
[1672932841941,119.026,13.328,13.316,5.45553096]
[1672932842899,119.026,13.328,13.316,25.45553096]
[1672932843211,119.026,13.328,13.316,5.45553096]
[1672932846035,119.026,13.328,13.317,17.0]
[1672932846245,56.29,13.333,13.318,5.45552508]
[1672932846575,117.9973,13.335,13.319,93.35]
[1672932846782,117.9973,13.335,13.32,32.69]
[1672932846995,20.0,13.334,13.321,17.0]
[1672932847184,20.0,13.334,13.319,17.0]
[1672932847400,76.29,13.334,13.319,17.0]
[1672932847627,20.0,13.333,13.319,17.0]
[1672932847839,117.9973,13.335,13.32,20.0]
[1672932848051,117.9973,13.335,13.321,73.35]
[1672932848239,117.9973,13.335,13.322,20.0]
[1672932848446,115.3874,13.338,13.323,17.0]
[1672932848666,115.3874,13.338,13.324,20.0]
[1672932848873,115.3874,13.338,13.325,37.0]
[1672932849506,12.7,13.34,13.325,37.0]
[1672932849733,20.0,13.346,13.325,37.0]
[1672932849734,130.69467149,13.342,13.325,37.0]
[1672932850268,108.2773,13.342,13.325,37.0]
[1672932850662,108.2773,13.342,13.327,20.0]
[1672932850867,108.2773,13.342,13.328,17.0]
[1672932851093,20.0,13.341,13.328,17.0]
[1672932852042,108.2773,13.342,13.328,17.0]
[1672932853192,56.25,13.344,13.33,12.73]
[1672932853403,191.619,13.348,13.331,20.0]
[1672932853627,20.0,13.346,13.328,17.0]
[1672932853942,76.24,13.345,13.322,20.0]
[1672932854164,20.0,13.344,13.323,78.75737149]
[1672932854354,12.73,13.34,13.323,78.75737149]
[1672932854561,17.0,13.339,13.323,22.41737149]
[1672932855201,17.0,13.339,13.324,20.0]
[1672932855393,73.27,13.339,13.325,20.0]
[1672932855603,188.659,13.339,13.325,20.0]
[1672932856672,171.659,13.339,13.325,20.0]
[1672932856864,109.0044,13.342,13.326,22.41737149]
[1672932857283,20.0,13.341,13.326,22.41737149]
[1672932857721,69.0,13.34,13.325,20.0]
[1672932857913,20.0,13.339,13.323,20.0]
[1672932858244,20.0,13.337,13.323,20.0]
[1672932859489,20.0,13.337,13.322,20.0]
[1672932860156,22.41737149,13.336,13.321,224.7207]
[1672932860372,22.41737149,13.336,13.31,63.57]
[1672932860373,73.29,13.335,13.315,56.37]
[1672932860556,20.0,13.333,13.318,5.45552508]
[1672932860770,20.0,13.333,13.316,25.45511545]
[1672932860771,56.3,13.332,13.316,25.45511545]
[1672932861000,20.0,13.331,13.316,5.45511545]
[1672932861623,20.0,13.331,13.317,20.0]
[1672932861822,22.41737149,13.332,13.318,5.45552508]
[1672932862034,22.41737149,13.332,13.318,5.45511545]
[1672932862875,17.0,13.331,13.317,5.45511545]
[1672932863300,20.0,13.329,13.316,5.45552508]
[1672932863520,20.0,13.329,13.315,5.45593477]
[1672932863932,20.0,13.329,13.315,61.82593477]
[1672932864350,20.0,13.329,13.315,5.45593477]
[1672932865396,17.0,13.328,13.315,5.45593477]
[1672932865623,20.0,13.327,13.315,5.45593477]
[1672932868155,114.6942,13.328,13.315,5.45593477]
[1672932868367,114.6942,13.328,13.315,61.82593477]
[1672932868554,110.524,13.33,13.315,61.82593477]
[1672932868763,20.0,13.333,13.315,61.82593477]
[1672932869080,139.142,13.333,13.315,61.82593477]
[1672932869507,56.27,13.339,13.32,12.69]
[1672932869706,119.142,13.339,13.321,303.3579]
[1672932869915,119.142,13.339,13.322,20.0]
[1672932870143,119.142,13.339,13.323,76.34]
[1672932870340,20.0,13.338,13.323,76.34]
[1672932870551,20.0,13.338,13.323,20.0]
[1672932870760,17.0,13.337,13.323,20.0]
[1672932871289,17.0,13.337,13.322,20.0]
[1672932871923,20.0,13.336,13.322,20.0]
[1672932874355,42.41737149,13.336,13.322,20.0]
[1672932874771,20.0,13.334,13.322,20.0]
[1672932878447,117.0309,13.335,13.322,20.0]
[1672932882332,117.0309,13.335,13.323,20.0]
[1672932882533,117.0309,13.335,13.324,20.0]
[1672932883508,117.0309,13.335,13.322,40.0]
[1672932886031,117.0309,13.335,13.324,20.0]
[1672932886259,117.0309,13.335,13.325,17.0]
[1672932893922,20.0,13.334,13.325,17.0]
[1672932894678,20.0,13.334,13.322,20.0]
[1672932894863,39.41737149,13.333,13.322,20.0]
[1672932895073,20.0,13.332,13.322,20.0]
[1672932895472,17.0,13.331,13.323,20.0]
[1672932895684,20.0,13.332,13.323,20.0]
[1672932896316,20.0,13.332,13.318,20.0]
[1672932896528,20.0,13.332,13.319,5.45511545]
[1672932896845,20.0,13.332,13.32,20.0]
[1672932897050,20.0,13.332,13.321,5.45429635]
[1672932897275,20.0,13.332,13.321,5.4538869]
[1672932897483,20.0,13.334,13.322,20.0]
[1672932899254,20.0,13.332,13.322,20.0]
[1672932899580,20.0,13.332,13.322,19.92874016]
[1672932900954,20.0,13.332,13.317,56.36]
[1672932901147,20.0,13.332,13.318,25.45552508]
[1672932901348,20.0,13.332,13.319,25.45511545]
[1672932901555,20.0,13.332,13.32,5.45470587]
[1672932901773,20.0,13.332,13.321,20.0]
[1672932902097,20.0,13.332,13.322,5.4538869]
[1672932902305,20.0,13.334,13.321,20.0]
[1672932902511,20.0,13.334,13.32,20.0]
[1672932902728,20.0,13.334,13.321,118.8188]
[1672932903035,117.0309,13.335,13.322,25.4538869]
[1672932903231,117.0309,13.335,13.322,20.0]
[1672932903644,117.0309,13.335,13.323,20.0]
[1672932904090,117.0309,13.335,13.323,76.34]
[1672932904300,117.0309,13.335,13.324,20.0]
[1672932906196,20.0,13.334,13.324,20.0]
[1672932906380,20.0,13.334,13.323,20.0]
[1672932908622,117.0309,13.335,13.323,20.0]
[1672932910710,117.0309,13.335,13.323,42.41737149]
[1672932911015,119.142,13.339,13.325,20.0]
[1672932911859,119.142,13.339,13.325,42.41737149]
[1672932912053,119.142,13.339,13.324,56.33]
[1672932912265,141.55937149,13.339,13.325,20.0]
[1672932912484,109.0044,13.342,13.326,20.0]
[1672932912694,109.0044,13.342,13.327,76.32]
[1672932912902,109.0044,13.342,13.329,20.0]
[1672932913116,109.0044,13.342,13.33,76.31]
[1672932913436,109.0044,13.342,13.331,20.0]
[1672932913764,109.0044,13.342,13.332,20.0]
[1672932914924,109.0044,13.342,13.331,20.0]
[1672932915870,109.0044,13.342,13.33,20.0]
[1672932916293,109.0044,13.342,13.329,20.0]
[1672932917110,20.0,13.341,13.329,20.0]
[1672932917863,86.0,13.34,13.323,56.34]
[1672932918071,20.0,13.339,13.324,20.0]
[1672932918287,157.87307149,13.339,13.323,20.0]
[1672932919126,22.41737149,13.338,13.323,20.0]
[1672932919339,22.41737149,13.338,13.322,171.9316]
[1672932919535,20.0,13.337,13.322,171.9316]
[1672932921335,20.0,13.337,13.323,20.0]
[1672932923768,42.41737149,13.337,13.323,20.0]
[1672932923980,73.28,13.336,13.323,20.0]
[1672932924380,138.48837149,13.335,13.323,20.0]
[1672932924608,20.0,13.333,13.323,20.0]
[1672932931009,20.0,13.333,13.324,17.0]
[1672932931213,20.0,13.333,13.325,20.0]
[1672932931430,20.0,13.334,13.325,20.0]
[1672932931951,116.071,13.335,13.325,20.0]
[1672932932168,116.071,13.335,13.326,17.0]
[1672932933335,116.071,13.335,13.325,20.0]
[1672932933525,116.071,13.335,13.323,20.0]
[1672932933734,20.0,13.334,13.323,20.0]
[1672932936172,12.73,13.33,13.316,56.37]
[1672932936368,17.0,13.329,13.315,56.37]
[1672932936784,20.0,13.328,13.315,56.37]
[1672932937223,130.5424,13.328,13.315,56.37]
[1672932938466,130.5424,13.328,13.312,117.1858]
[1672932938467,130.5424,13.328,13.313,56.38]
[1672932938719,130.5424,13.328,13.315,20.0]
[1672932938911,130.5424,13.328,13.316,17.0]
[1672932939124,130.5424,13.328,13.315,20.0]
[1672932939442,20.0,13.326,13.315,20.0]
[1672932939858,17.0,13.325,13.314,20.0]
[1672932940071,20.0,13.326,13.314,20.0]
[1672932941010,20.0,13.326,13.315,56.37]
[1672932943866,12.73,13.32,13.314,20.0]
[1672932944079,12.73,13.32,13.308,56.4]
[1672932944271,20.0,13.319,13.302,20.0]
[1672932944599,17.0,13.318,13.303,56.42]
[1672932944798,149.87717149,13.318,13.302,56.43]
[1672932945009,20.0,13.316,13.302,56.43]
[1672932945215,20.0,13.316,13.301,106.9923]
[1672932945429,20.0,13.316,13.302,20.0]
[1672932945635,20.0,13.316,13.303,56.42]
[1672932946911,110.4598,13.318,13.302,56.43]
[1672932947108,110.4598,13.318,13.303,20.0]
[1672932947320,110.4598,13.318,13.304,56.42]
[1672932947630,110.4598,13.318,13.305,20.0]
[1672932948797,110.4598,13.318,13.304,76.42]
[1672932949642,20.0,13.316,13.304,20.0]
[1672932949849,20.0,13.316,13.302,56.43]
[1672932949850,20.0,13.316,13.303,20.0]
[1672932950089,20.0,13.316,13.305,20.0]
[1672932950593,20.0,13.316,13.304,56.42]
[1672932950806,20.0,13.316,13.305,20.0]
[1672932951427,20.0,13.316,13.303,20.0]
[1672932951650,20.0,13.316,13.304,56.42]
[1672932951866,20.0,13.316,13.305,20.0]
[1672932952478,20.0,13.316,13.303,20.0]
[1672932952913,17.0,13.315,13.303,20.0]
[1672932955443,111.776,13.314,13.303,20.0]
[1672932955627,20.0,13.313,13.303,20.0]
[1672932956476,20.0,13.313,13.302,20.0]
[1672932958064,12.71,13.31,13.302,20.0]
[1672932959943,111.776,13.314,13.302,20.0]
[1672932960154,111.776,13.314,13.302,42.41737149]
[1672932960380,111.776,13.314,13.303,76.42]
[1672932960577,111.776,13.314,13.304,20.0]
[1672932960794,111.776,13.314,13.305,56.41]
[1672932961002,111.776,13.314,13.306,17.0]
[1672932961631,111.776,13.314,13.305,17.0]
[1672932962371,20.0,13.313,13.304,20.0]
[1672932962597,20.0,13.313,13.303,20.0]
[1672932962786,20.0,13.313,13.302,20.0]
[1672932962996,20.0,13.311,13.302,20.0]
[1672932963641,20.0,13.313,13.302,20.0]
[1672932966155,17.0,13.312,13.302,20.0]
[1672932969633,111.776,13.314,13.302,20.0]
[1672932970994,111.776,13.314,13.304,20.0]
[1672932971211,111.776,13.314,13.305,20.0]
[1672932972163,111.776,13.314,13.304,20.0]
[1672932972365,20.0,13.313,13.304,20.0]
[1672932975319,111.776,13.314,13.304,20.0]
[1672932976995,20.0,13.313,13.304,20.0]
[1672932978029,17.0,13.312,13.304,20.0]
[1672932978461,17.0,13.312,13.302,20.0]
[1672932980570,12.73,13.31,13.302,20.0]
[1672932982555,12.73,13.31,13.301,106.9923]
[1672932982774,12.73,13.31,13.296,56.45]
[1672932982983,12.73,13.31,13.297,17.0]
[1672932983197,12.73,13.31,13.298,56.44]
[1672932983405,12.73,13.31,13.299,17.0]
[1672932983820,12.73,13.31,13.298,17.0]
[1672932984357,12.73,13.31,13.297,56.45]
[1672932984569,17.0,13.309,13.296,113.8065]
[1672932985820,17.0,13.309,13.298,20.0]
[1672932986029,12.73,13.31,13.297,17.0]
[1672932986243,12.73,13.31,13.299,20.0]
[1672932986447,20.0,13.313,13.299,20.0]
[1672932986657,12.73,13.31,13.298,56.44]
[1672932987200,12.73,13.31,13.297,73.45]
[1672932987415,17.0,13.309,13.297,73.45]
[1672932987599,12.73,13.31,13.297,73.45]
[1672932989716,12.73,13.31,13.298,20.0]
[1672932990446,111.776,13.314,13.299,76.44]
[1672932990653,111.776,13.314,13.3,32.73]
[1672932990863,111.776,13.314,13.302,20.0]
[1672932991079,111.776,13.314,13.303,76.42]
[1672932991288,111.776,13.314,13.304,17.0]
[1672932991497,111.776,13.314,13.305,76.41]
[1672932991828,111.776,13.314,13.306,17.0]
[1672932992223,69.08,13.32,13.306,17.0]
[1672932992428,12.73,13.32,13.306,73.41]
[1672932994243,56.33,13.325,13.307,20.0]
[1672932994434,56.33,13.325,13.308,73.4]
[1672932994954,20.0,13.324,13.308,73.4]
[1672932995171,56.34,13.323,13.308,73.4]
[1672932995374,20.0,13.324,13.308,17.0]
[1672932995585,20.0,13.324,13.307,17.0]
[1672932995804,20.0,13.324,13.309,20.0]
[1672932996344,20.0,13.324,13.308,56.4]
[1672932998335,56.33,13.325,13.309,20.0]
[1672932998526,20.0,13.327,13.309,20.0]
[1672932998527,76.32,13.327,13.31,76.39]
[1672932998732,76.32,13.327,13.311,20.0]
[1672932998944,76.32,13.327,13.312,76.38]
[1672932999474,17.0,13.326,13.312,76.38]
[1672932999699,130.5424,13.328,13.312,76.38]
[1672933001249,130.5424,13.328,13.313,20.0]
[1672933001473,130.5424,13.328,13.314,76.38]
[1672933001696,130.5424,13.328,13.314,192.3205]
[1672933001897,110.5424,13.328,13.315,20.0]
[1672933002323,110.5424,13.328,13.314,192.3205]
[1672933004431,132.95977149,13.328,13.314,192.3205]
[1672933006028,20.0,13.326,13.314,20.0]
[1672933006239,17.0,13.325,13.312,20.0]
[1672933006763,20.0,13.326,13.312,20.0]
[1672933006966,20.0,13.327,13.314,20.0]
[1672933007179,20.0,13.327,13.315,56.37]
[1672933007597,20.0,13.327,13.314,20.0]
[1672933007807,20.0,13.327,13.315,56.37]
[1672933008121,42.41737149,13.327,13.312,20.0]
[1672933008331,93.32,13.326,13.31,113.6159]
[1672933008549,20.0,13.325,13.31,113.6159]
[1672933008867,20.0,13.323,13.302,23.43]
[1672933009184,17.0,13.322,13.304,20.0]
[1672933009367,20.0,13.321,13.306,20.0]
[1672933009579,139.481,13.321,13.307,23.43]
[1672933009810,161.89837149,13.321,13.305,23.43]
[1672933010657,20.0,13.319,13.304,23.44]
[1672933011044,20.0,13.319,13.305,20.0]
[1672933011257,20.0,13.319,13.306,23.44]
[1672933011469,20.0,13.317,13.305,20.0]
[1672933012000,20.0,13.317,13.304,20.0]
[1672933012326,20.0,13.317,13.305,56.41]
[1672933022720,17.0,13.316,13.304,20.0]
[1672933022928,20.0,13.315,13.304,20.0]
[1672933023144,128.4385,13.314,13.303,20.0]
[1672933023365,20.0,13.313,13.303,20.0]
[1672933023576,42.41737149,13.313,13.303,20.0]
[1672933024215,22.41737149,13.312,13.301,56.43]
[1672933024427,20.0,13.311,13.3,100.13]
[1672933024617,20.0,13.311,13.294,176.1086]
[1672933025690,20.0,13.311,13.295,20.0]
[1672933025907,20.0,13.311,13.296,56.45]
[1672933026112,20.0,13.312,13.296,78.86737149]
[1672933026325,138.2799,13.313,13.297,42.41737149]
[1672933026326,118.2799,13.313,13.297,42.41737149]
[1672933026520,118.2799,13.313,13.299,20.0]
[1672933026736,118.2799,13.313,13.3,189.7018]
[1672933028954,20.0,13.312,13.3,189.7018]
[1672933031165,118.2799,13.313,13.3,189.7018]
[1672933033165,20.0,13.312,13.3,189.7018]
[1672933035154,20.0,13.312,13.3,133.2718]
[1672933035364,20.0,13.312,13.301,56.43]
[1672933035577,20.0,13.312,13.302,20.0]
[1672933036626,118.2799,13.313,13.302,20.0]
[1672933037034,118.2799,13.313,13.303,56.42]
[1672933037244,118.2799,13.313,13.304,20.0]
[1672933037879,118.2799,13.313,13.303,20.0]
[1672933038108,118.2799,13.313,13.304,56.42]
[1672933038295,118.2799,13.313,13.305,20.0]
[1672933038923,118.2799,13.313,13.304,20.0]
[1672933039235,111.4385,13.314,13.304,56.42]
[1672933039446,69.08,13.32,13.305,20.0]
[1672933039769,113.163,13.32,13.306,76.41]
[1672933039979,113.163,13.32,13.307,20.0]
[1672933040307,113.163,13.32,13.308,56.4]
[1672933040500,113.163,13.32,13.308,20.0]
[1672933040837,113.163,13.32,13.309,56.4]
[1672933041019,113.163,13.32,13.307,56.4]
[1672933042198,113.163,13.32,13.307,20.0]
[1672933042415,113.163,13.32,13.308,56.4]
[1672933044493,113.163,13.32,13.307,20.0]
[1672933044726,113.163,13.32,13.308,56.4]
[1672933044927,113.163,13.32,13.309,20.0]
[1672933045241,113.163,13.32,13.308,56.4]
[1672933045458,113.163,13.32,13.306,56.41]
[1672933047557,20.0,13.319,13.306,56.41]
[1672933048708,113.163,13.32,13.307,20.0]
[1672933049035,113.163,13.32,13.308,56.4]
[1672933050088,113.163,13.32,13.307,20.0]
[1672933050291,113.163,13.32,13.308,56.4]
[1672933050824,113.163,13.32,13.306,56.41]